bitfinex-derivatives/quotes_SOLF0:USTF0_20260104
["timestamp","ask_amount","ask_price","bid_price","bid_amount"]
[1767490114893,3.45749774,133.95,133.92,16.33219655]
[1767490115891,4.67079862,133.95,133.92,10.02733509]
[1767490116086,3.45749774,133.95,133.92,10.02733509]
[1767490119293,0.05113801,133.95,133.92,10.02733509]
[1767490119495,0.05113801,133.95,133.92,13.42054343]
[1767490124096,0.05113801,133.95,133.92,10.02733509]
[1767490131208,88.29113801,133.95,133.92,10.02733509]
[1767490131507,0.05113801,133.95,133.92,10.02733509]
[1767490131708,88.29113801,133.95,133.92,10.02733509]
[1767490133504,91.69749774,133.95,133.92,10.02733509]
[1767490133708,91.69749774,133.95,133.89,3.39320834]
[1767490134610,91.69749774,133.95,133.91,0.05101502]
[1767490135104,5.90427334,133.94,133.91,0.05101502]
[1767490135305,91.69749774,133.95,133.91,0.05101502]
[1767490135504,5.90427334,133.94,133.91,0.05101502]
[1767490135700,3.40635973,133.93,133.8,104.676]
[1767490135914,3.40635973,133.9,133.82,3.39320834]
[1767490136208,88.24,133.9,133.83,3.39320834]
[1767490136706,3.40635973,133.92,133.83,3.39320834]
[1767490136916,0.04766972,133.88,133.85,3.4478733]
[1767490139321,0.04766972,133.88,133.85,0.05466496]
[1767490140414,3.47623898,133.93,133.85,3.61169777]
[1767490140722,94.16346063,133.92,133.85,3.61169777]
[1767490140916,88.24,133.92,133.85,3.61169777]
[1767490141517,0.0493117,133.9,133.85,3.61169777]
[1767490143727,0.0493117,133.9,133.85,10.33839777]
[1767490144020,91.73623898,133.93,133.86,3.55703281]
[1767490144021,88.26,133.93,133.86,3.55703281]
[1767490144622,3.47623898,133.95,133.86,3.55703281]
[1767490144812,5.92174414,133.94,133.86,3.55703281]
[1767490145014,0.05575188,133.91,133.89,0.0527678]
[1767490145215,91.73623898,133.95,133.89,0.0527678]
[1767490145420,5.92175575,133.94,133.89,0.0527678]
[1767490145620,5.92175575,133.93,133.89,0.0527678]
[1767490145817,3.47623898,133.95,133.89,0.0527678]
[1767490146126,5.92178291,133.94,133.89,0.0527678]
[1767490146420,0.05454826,133.93,133.89,0.0527678]
[1767490153236,3.53078724,133.93,133.89,0.0527678]
[1767490157137,5.92780635,133.92,133.89,0.0527678]
[1767490157328,3.53078724,133.93,133.89,0.0527678]
[1767490157528,5.92874167,133.92,133.89,0.0527678]
[1767490157729,3.53078724,133.93,133.89,0.0527678]
[1767490157929,5.9287644,133.92,133.89,0.0527678]
[1767490158139,3.53078724,133.93,133.89,0.0527678]
[1767490158345,5.9300342,133.92,133.89,0.0527678]
[1767490158547,3.53078724,133.93,133.89,0.0527678]
[1767490158846,5.93001765,133.92,133.89,0.0527678]
[1767490159048,3.53078724,133.93,133.89,0.0527678]
[1767490159248,5.92993339,133.92,133.89,0.0527678]
[1767490159448,3.53078724,133.93,133.89,0.0527678]
[1767490159665,5.92993339,133.92,133.89,0.0527678]
[1767490159843,3.53078724,133.93,133.89,0.0527678]
[1767490160044,5.92993792,133.92,133.89,0.0527678]
[1767490160250,5.4291978,133.93,133.89,0.0527678]
[1767490160441,5.93036721,133.92,133.89,0.0527678]
[1767490160644,5.4291978,133.93,133.89,0.0527678]
[1767490160855,5.93036721,133.92,133.89,0.0527678]
[1767490161050,5.4291978,133.93,133.89,0.0527678]
[1767490161249,5.93055916,133.92,133.89,0.0527678]
[1767490161451,5.4291978,133.93,133.89,0.0527678]
[1767490161652,5.93050707,133.92,133.89,0.0527678]
[1767490161957,5.4291978,133.93,133.89,0.0527678]
[1767490162156,5.93050707,133.92,133.89,0.0527678]
[1767490162357,5.4291978,133.93,133.89,0.0527678]
[1767490162657,5.9306846,133.92,133.89,0.0527678]
[1767490162855,5.4291978,133.93,133.89,0.0527678]
[1767490163057,5.93110653,133.92,133.89,0.0527678]
[1767490163254,5.4291978,133.93,133.89,0.0527678]
[1767490163454,5.93131569,133.92,133.89,0.0527678]
[1767490163658,5.4291978,133.93,133.89,0.0527678]
[1767490163859,5.93111651,133.92,133.89,0.0527678]
[1767490164060,5.4291978,133.93,133.89,0.0527678]
[1767490164252,5.93155276,133.92,133.89,0.0527678]
[1767490164453,5.4291978,133.93,133.89,0.0527678]
[1767490164654,5.93155276,133.92,133.89,0.0527678]
[1767490164853,5.4291978,133.93,133.89,0.0527678]
[1767490165054,5.93155276,133.92,133.89,0.0527678]
[1767490165255,5.4291978,133.93,133.89,0.0527678]
[1767490165456,5.93163046,133.92,133.89,0.0527678]
[1767490165653,5.4291978,133.93,133.89,0.0527678]
[1767490165863,5.93163046,133.92,133.89,0.0527678]
[1767490166161,5.4291978,133.93,133.89,0.0527678]
[1767490166362,0.05454826,133.93,133.89,3.60980061]
[1767490167763,3.47623898,133.97,133.9,3.55703281]
[1767490168064,5.87695739,133.96,133.9,3.55703281]
[1767490168264,3.47623898,133.97,133.9,3.55703281]
[1767490168461,5.87666734,133.96,133.92,3.55703281]
[1767490168668,0.05409651,133.95,133.93,0.05490402]
[1767490183383,3.40301143,133.95,133.89,3.39426777]
[1767490184679,3.40301143,133.95,133.91,0.05312018]
[1767490196085,0.05409651,133.95,133.91,3.3792375]
[1767490201192,4.65650969,133.94,133.91,0.05312018]
[1767490202093,4.65650969,133.94,133.91,0.0046026]
[1767490203594,3.44168688,133.94,133.91,0.0046026]
[1767490203796,4.65650969,133.94,133.91,0.0046026]
[1767490204595,3.44168688,133.94,133.91,0.0046026]
[1767490207281,0.05409651,133.95,133.91,0.0046026]
[1767490207486,5.87435101,133.94,133.91,0.0046026]
[1767490207686,0.05409651,133.95,133.91,0.0046026]
[1767490207882,5.87473451,133.94,133.91,0.0046026]
[1767490208093,0.05409651,133.95,133.91,0.0046026]
[1767490208403,5.87558148,133.94,133.91,0.0046026]
[1767490208593,0.05409651,133.95,133.91,0.0046026]
[1767490208895,5.87561226,133.94,133.91,0.0046026]
[1767490209085,0.05409651,133.95,133.91,0.0046026]
[1767490209286,5.87656341,133.94,133.91,0.0046026]
[1767490209485,0.05409651,133.95,133.91,0.0046026]
[1767490209692,5.87647534,133.94,133.91,0.0046026]
[1767490209886,0.05409651,133.95,133.91,0.0046026]
[1767490210100,5.87653629,133.94,133.91,0.0046026]
[1767490210302,0.05409651,133.95,133.91,0.0046026]
[1767490210493,5.87772822,133.94,133.91,0.0046026]
[1767490210695,0.05409651,133.95,133.91,3.55198725]
[1767490211192,5.87787704,133.94,133.91,3.55198725]
[1767490211393,0.05409651,133.95,133.91,3.55198725]
[1767490211696,5.87923549,133.94,133.91,3.55198725]
[1767490211896,0.05409651,133.95,133.91,3.55198725]
[1767490212097,5.87949704,133.94,133.91,3.55198725]
[1767490212292,0.05409651,133.95,133.91,3.55198725]
[1767490212487,5.88014788,133.94,133.91,0.0046026]
[1767490212697,5.8799815,133.93,133.91,0.0046026]
[1767490213000,3.44168688,133.94,133.91,0.0046026]
[1767490213204,5.87994242,133.93,133.91,0.0046026]
[1767490213396,3.44168688,133.94,133.91,0.0046026]
[1767490213704,5.87982107,133.93,133.91,0.0046026]
[1767490214004,3.44168688,133.94,133.91,0.0046026]
[1767490214305,5.87980708,133.93,133.91,0.0046026]
[1767490214505,3.44168688,133.94,133.91,0.0046026]
[1767490214804,5.8798162,133.93,133.91,0.0046026]
[1767490214994,3.44168688,133.94,133.91,0.0046026]
[1767490215191,5.87981057,133.93,133.91,0.0046026]
[1767490215400,3.44168688,133.94,133.91,0.0046026]
[1767490215601,5.87991666,133.93,133.91,0.0046026]
[1767490215800,3.44168688,133.94,133.91,0.0046026]
[1767490216000,5.87991948,133.93,133.91,0.0046026]
[1767490216206,3.44168688,133.94,133.91,0.0046026]
[1767490216508,5.88009335,133.93,133.91,0.0046026]
[1767490216698,3.44168688,133.94,133.91,0.0046026]
[1767490217008,5.88087585,133.93,133.91,0.0046026]
[1767490217303,1.26891932,133.95,133.91,0.0046026]
[1767490217505,5.8812378,133.94,133.91,0.0046026]
[1767490217703,3.49578339,133.95,133.91,0.0046026]
[1767490217905,5.88153599,133.94,133.91,0.0046026]
[1767490218209,3.49578339,133.95,133.91,0.0046026]
[1767490218410,5.88164438,133.94,133.91,0.0046026]
[1767490218709,3.49578339,133.95,133.91,0.0046026]
[1767490218910,5.88183711,133.94,133.91,0.0046026]
[1767490219105,3.49578339,133.95,133.91,0.0046026]
[1767490219299,5.88197397,133.94,133.91,0.0046026]
[1767490219499,3.49578339,133.95,133.91,0.0046026]
[1767490219703,5.8825039,133.94,133.91,0.0046026]
[1767490219909,3.49578339,133.95,133.91,0.0046026]
[1767490220112,5.88250386,133.94,133.91,0.0046026]
[1767490220311,3.49578339,133.95,133.91,0.0046026]
[1767490220605,9.32446692,133.94,133.91,0.0046026]
[1767490220810,5.88278004,133.93,133.91,0.0046026]
[1767490221004,3.44168688,133.94,133.91,0.0046026]
[1767490221207,5.88271133,133.93,133.91,0.0046026]
[1767490221513,3.44168688,133.94,133.91,0.0046026]
[1767490221701,5.88249686,133.93,133.91,0.0046026]
[1767490221912,3.44168688,133.94,133.91,0.0046026]
[1767490222105,5.88249686,133.93,133.91,0.0046026]
[1767490222302,3.44168688,133.94,133.91,0.0046026]
[1767490222501,5.88254155,133.93,133.91,0.0046026]
[1767490222705,3.44168688,133.94,133.91,0.0046026]
[1767490222904,5.88255274,133.93,133.91,0.0046026]
[1767490223112,3.44168688,133.94,133.91,0.0046026]
[1767490223315,5.88266708,133.93,133.91,0.0046026]
[1767490223516,3.44168688,133.94,133.91,0.0046026]
[1767490223716,5.88266708,133.93,133.91,0.0046026]
[1767490223911,3.44168688,133.94,133.91,0.0046026]
[1767490224109,5.88266708,133.93,133.91,0.0046026]
[1767490224410,5.88211468,133.92,133.85,3.54738465]
[1767490224610,5.88211468,133.91,133.85,3.54738465]
[1767490224914,9.32380156,133.9,133.84,1.21482281]
[1767490225212,1.21482281,133.9,133.83,3.54738465]
[1767490225416,9.32073113,133.89,133.83,3.54738465]
[1767490225716,5.93404452,133.88,133.85,0.05719143]
[1767490225916,0.05500027,133.88,133.85,0.05719143]
[1767490228415,3.44168688,133.87,133.82,6.7282]
[1767490228610,3.44168688,133.87,133.81,16.93621278]
[1767490228815,3.44168688,133.87,133.81,20.48359743]
[1767490229515,3.44168688,133.87,133.83,0.04854422]
[1767490230614,3.44168688,133.87,133.73,104.7314]
[1767490230615,1.5,133.87,133.73,104.7314]
[1767490230812,1.5,133.87,133.7,272.66378264]
[1767490230813,3.56722269,133.77,133.71,3.30195412]
[1767490231021,4.7820455,133.8,133.72,4.51677693]
[1767490231223,3.56722269,133.79,133.72,4.51677693]
[1767490231915,0.05357885,133.77,133.74,0.04917921]
[1767490233011,3.43530726,133.77,133.74,0.04917921]
[1767490233211,4.59655122,133.76,133.68,3.6013057]
[1767490233722,127.1034,133.8,133.68,3.6013057]
[1767490233723,1.21482281,133.74,133.68,3.6013057]
[1767490233917,4.59655122,133.74,133.66,4.81612851]
[1767490234314,0.05009809,133.71,133.69,0.0560274]
[1767490234918,0.05009809,133.71,133.64,3.6013057]
[1767490236112,4.59655122,133.7,133.66,0.05130726]
[1767490236318,0.05714562,133.69,133.66,0.05130726]
[1767490237112,3.38172841,133.73,133.66,4.86743577]
[1767490237717,1.21482281,133.75,133.67,3.6013057]
[1767490238215,0.05694351,133.72,133.7,0.04935606]
[1767490243125,0.05694351,133.72,133.65,3.6013057]
[1767490243326,3.43867192,133.72,133.65,3.6013057]
[1767490243727,3.43867192,133.72,133.63,3.6013057]
[1767490244022,0.04886394,133.69,133.66,0.05518404]
[1767490244228,3.43059235,133.69,133.61,3.6013057]
[1767490244430,3.38172841,133.69,133.61,3.6013057]
[1767490245231,0.05182646,133.66,133.64,0.05094623]
[1767490247330,3.38172841,133.69,133.64,0.05094623]
[1767490248324,0.05558579,133.68,133.64,0.05094623]
[1767490250730,3.38172841,133.73,133.65,3.6013057]
[1767490251940,0.04809843,133.7,133.68,0.05093928]
[1767490252330,6.7326,133.74,133.68,0.05093928]
[1767490252729,10.11432841,133.74,133.68,0.05093928]
[1767490253427,0.04945148,133.72,133.68,0.05093928]
[1767490261726,3.40912854,133.72,133.68,0.05093928]
[1767490262837,3.40912854,133.72,133.68,3.4587559]
[1767490262838,0.04945148,133.72,133.68,3.4587559]
[1767490264742,3.35967706,133.75,133.68,3.4587559]
[1767490265334,5.84849089,133.74,133.68,3.4587559]
[1767490265534,3.35967706,133.75,133.68,3.4587559]
[1767490265741,0.0477655,133.73,133.68,3.4587559]
[1767490265942,0.0477655,133.73,133.68,5.36383414]
[1767490266140,91.75967706,133.77,133.69,3.40781662]
[1767490266345,5.8552723,133.76,133.69,3.40781662]
[1767490266538,5.8552723,133.75,133.69,3.40781662]
[1767490266845,98.49087706,133.77,133.69,3.40781662]
[1767490267046,5.85604754,133.76,133.69,3.40781662]
[1767490267346,0.04807805,133.74,133.71,3.46338249]
[1767490267536,0.04807805,133.74,133.71,0.05556587]
[1767490270335,5.88944263,133.73,133.71,0.05556587]
[1767490270536,0.04807805,133.74,133.71,0.05556587]
[1767490270743,5.88944263,133.73,133.71,0.05556587]
[1767490270943,0.04807805,133.74,133.71,0.05556587]
[1767490271145,5.88944263,133.73,133.71,0.05556587]
[1767490271342,0.04807805,133.74,133.71,0.05556587]
[1767490271542,5.89586553,133.73,133.71,0.05556587]
[1767490271737,0.04807805,133.74,133.71,0.05556587]
[1767490271939,5.89586553,133.73,133.71,0.05556587]
[1767490272235,0.04807805,133.74,133.71,0.05556587]
[1767490272436,5.90310921,133.73,133.71,0.05556587]
[1767490272639,0.04807805,133.74,133.71,0.05556587]
[1767490272833,3.35967706,133.78,133.71,3.46338249]
[1767490273947,0.05150407,133.76,133.71,3.46338249]
[1767490281457,3.41118113,133.76,133.71,0.05556587]
[1767490285059,5.83363694,133.75,133.71,0.05556587]
[1767490285258,3.41118113,133.76,133.71,0.05556587]
[1767490285459,5.83340794,133.75,133.71,0.05556587]
[1767490285659,3.41118113,133.76,133.71,0.05556587]
[1767490285846,3.35967706,133.72,133.66,3.40781662]
[1767490286761,0.05610497,133.7,133.68,0.05634708]
[1767490287752,3.41578203,133.7,133.62,3.40781662]
[1767490287958,3.35967706,133.7,133.62,3.40781662]
[1767490288762,0.05057875,133.67,133.65,0.05255471]
[1767490289259,3.41025581,133.67,133.6,3.40781662]
[1767490290162,3.41025581,133.67,133.62,0.04773202]
[1767490295761,0.05057875,133.67,133.62,3.41634001]
[1767490295961,3.38006496,133.71,133.62,3.41634001]
[1767490296265,9.19610487,133.7,133.62,3.36860799]
[1767490296464,3.38006496,133.7,133.62,3.36860799]
[1767490296854,3.38006496,133.7,133.63,10.10650799]
[1767490297169,0.05582268,133.68,133.65,0.05030393]
[1767490297359,3.43588764,133.68,133.65,0.05030393]
[1767490297564,3.38006496,133.67,133.59,19.87512118]
[1767490298258,91.78006496,133.69,133.6,3.36860799]
[1767490298561,0.05271641,133.66,133.63,0.05140392]
[1767490299563,0.05271641,133.66,133.6,3.36860799]
[1767490300568,0.05271641,133.66,133.62,0.04865257]
[1767490300761,3.43278137,133.66,133.62,0.04865257]
[1767490304564,4.65346114,133.66,133.62,0.04865257]
[1767490307175,3.43278137,133.66,133.62,0.04865257]
[1767490307473,4.65346114,133.66,133.62,0.04865257]
[1767490310373,0.05271641,133.66,133.62,0.04865257]
[1767490310578,3.38006496,133.76,133.65,3.36860799]
[1767490310773,3.38006496,133.76,133.68,3.36860799]
[1767490311470,0.04957296,133.73,133.71,0.04942215]
[1767490313877,4.60074473,133.78,133.71,0.04942215]
[1767490314079,4.60074473,133.78,133.71,4.63870991]
[1767490314978,0.05667777,133.76,133.71,4.63870991]
[1767490317684,0.05667777,133.76,133.71,3.41803014]
[1767490317983,0.05667777,133.76,133.71,4.63870991]
[1767490318380,0.05667777,133.76,133.71,3.41803014]
[1767490318583,0.05667777,133.76,133.71,4.63870991]
[1767490319777,0.05667777,133.76,133.72,3.36860799]
[1767490319978,3.38006496,133.8,133.74,3.41508336]
[1767490320177,3.38006496,133.8,133.73,1.22067977]
[1767490320683,4.60074473,133.8,133.73,1.22067977]
[1767490321179,0.05419191,133.78,133.75,0.05336292]
[1767490323277,3.43664114,133.82,133.76,3.41508336]
[1767490323678,3.43664114,133.85,133.78,10.14528336]
[1767490324278,0.05653196,133.83,133.8,0.05246152]
[1767490329694,3.43664114,133.87,133.8,4.68822465]
[1767490330288,3.43664114,133.87,133.81,3.41508336]
[1767490330682,93.03732091,133.89,133.81,3.41508336]
[1767490330882,0.04830623,133.85,133.81,3.41508336]
[1767490331193,0.04830623,133.85,133.84,0.0504002]
[1767490331590,3.43664114,133.89,133.84,0.0504002]
[1767490331890,4.65732091,133.89,133.84,0.0504002]
[1767490332297,3.43664114,133.88,133.84,0.0504002]
[1767490332485,3.43664114,133.88,133.79,4.63576313]
[1767490332690,3.43664114,133.88,133.8,3.41508336]
[1767490333594,0.04898876,133.85,133.83,0.05135233]
[1767490335490,4.65732091,133.88,133.83,0.05135233]
[1767490335993,1.22067977,133.86,133.83,0.05135233]
[1767490336195,3.43664114,133.86,133.8,3.41508336]
[1767490336497,0.0571564,133.84,133.82,0.0517064]
[1767490338998,3.43664114,133.88,133.82,0.0517064]
[1767490340092,0.0247932,133.86,133.82,0.0517064]
[1767490344893,3.43664114,133.88,133.82,0.0517064]
[1767490346102,3.43664114,133.88,133.82,3.46678976]
[1767490352407,4.73907582,133.9,133.82,3.46678976]
[1767490352608,9.26268669,133.89,133.82,3.46678976]
[1767490352809,3.51839605,133.89,133.82,3.46678976]
[1767490353420,3.51839605,133.89,133.82,10.19478976]
[1767490353609,3.51839605,133.89,133.83,3.63056294]
[1767490354910,3.51839605,133.89,133.83,10.35836294]
[1767490355418,3.51839605,133.89,133.84,3.63056294]
[1767490355619,3.51839605,133.89,133.85,0.04712014]
[1767490356218,1.22067977,133.9,133.85,0.04712014]
[1767490356424,5.77154152,133.89,133.85,0.04712014]
[1767490356616,3.51839605,133.91,133.85,0.04712014]
[1767490356818,5.77142459,133.9,133.85,3.67768308]
[1767490357015,3.51839605,133.91,133.85,3.67768308]
[1767490357325,5.77107831,133.9,133.85,3.67768308]
[1767490357630,7.831e-05,133.89,133.85,3.67768308]
[1767490357808,3.51839605,133.91,133.85,10.40438308]
[1767490359728,3.51839605,133.93,133.86,10.35676294]
[1767490359916,3.51839605,133.93,133.88,0.0566896]
[1767490362735,16.82460556,133.96,133.88,3.68725254]
[1767490363035,3.51839605,133.95,133.88,4.90793231]
[1767490363326,3.51839605,133.95,133.88,11.63313231]
[1767490363526,3.51839605,133.95,133.89,3.63056294]
[1767490364515,88.3,133.97,133.88,1.27736937]
[1767490364516,3.51839605,133.97,133.9,3.63056294]
[1767490364724,3.51839605,133.97,133.92,0.0554802]
[1767490367834,10.23959605,133.97,133.92,0.0554802]
[1767490368129,3.51839605,133.96,133.92,0.0554802]
[1767490369522,9.27654141,133.95,133.92,0.0554802]
[1767490369725,3.51839605,133.95,133.92,0.0554802]
[1767490376737,3.51839605,133.95,133.88,3.63056294]
[1767490377836,3.51839605,133.95,133.9,0.04727173]
[1767490377837,0.0554802,133.93,133.9,0.04727173]
[1767490382243,3.2536809,133.97,133.9,3.52633432]
[1767490382443,3.2536809,133.97,133.9,3.47906259]
[1767490383135,3.2536809,133.97,133.87,6.7257]
[1767490383333,3.2536809,133.93,133.86,3.47906259]
[1767490383741,3.2536809,133.93,133.84,3.47906259]
[1767490384342,0.04723663,133.9,133.87,0.05566051]
[1767490385747,3.30091753,133.9,133.84,3.47906259]
[1767490386842,3.30091753,133.9,133.86,0.0523889]
[1767490390758,3.2536809,133.87,133.78,3.47906259]
[1767490390953,3.2536809,133.85,133.78,3.47906259]
[1767490391162,3.2536809,133.85,133.76,3.47906259]
[1767490391759,0.05165161,133.82,133.79,0.0519013]
[1767490392155,3.2536809,133.85,133.79,0.0519013]
[1767490392352,3.2536809,133.85,133.77,3.47906259]
[1767490392856,3.2536809,133.85,133.78,3.47906259]
[1767490393248,3.2536809,133.87,133.8,3.53458187]
[1767490393458,3.2536809,133.87,133.8,3.47906259]
[1767490393656,3.2536809,133.87,133.81,3.47906259]
[1767490394352,0.05047065,133.85,133.83,0.05398999]
[1767490400964,91.5136809,133.89,133.83,3.53305258]
[1767490401257,3.2536809,133.89,133.83,3.53305258]
[1767490402357,3.2536809,133.91,133.83,3.53305258]
[1767490402547,3.2536809,133.91,133.86,0.05548857]
[1767490414768,3.2536809,133.91,133.82,3.33445555]
[1767490415161,90.17820005,133.93,133.82,3.33445555]
[1767490415162,3.05638874,133.89,133.82,3.33445555]
[1767490415362,3.05638874,133.89,133.82,10.06265555]
[1767490415766,0.04712902,133.87,133.84,0.05579964]
[1767490428561,3.05638874,133.89,133.84,3.39025519]
[1767490430170,3.05638874,133.89,133.84,0.05579964]
[1767490436381,5.76025574,133.88,133.84,0.05579964]
[1767490436678,3.05638874,133.89,133.84,0.05579964]
[1767490436879,5.76025574,133.88,133.84,0.05579964]
[1767490437181,3.05638874,133.89,133.84,0.05579964]
[1767490437372,5.76359635,133.88,133.84,0.05579964]
[1767490437569,3.05638874,133.89,133.84,0.05579964]
[1767490437773,5.76368958,133.88,133.84,0.05579964]
[1767490437971,3.05638874,133.89,133.84,0.05579964]
[1767490438175,5.76369235,133.88,133.84,0.05579964]
[1767490438372,3.05638874,133.89,133.84,0.05579964]
[1767490438580,5.76525151,133.88,133.84,0.05579964]
[1767490438777,3.05638874,133.89,133.84,0.05579964]
[1767490438977,5.76525151,133.88,133.84,0.05579964]
[1767490439178,3.05638874,133.89,133.84,0.05579964]
[1767490439380,5.77232021,133.88,133.84,0.05579964]
[1767490439677,3.05638874,133.89,133.84,0.05579964]
[1767490439877,5.77260862,133.88,133.84,0.05579964]
[1767490440082,3.05638874,133.89,133.84,0.05579964]
[1767490440380,5.77298817,133.88,133.84,0.05579964]
[1767490440570,3.05638874,133.89,133.84,0.05579964]
[1767490440774,5.77317909,133.88,133.84,0.05579964]
[1767490440978,3.05638874,133.89,133.84,0.05579964]
[1767490441184,5.77317909,133.88,133.84,0.05579964]
[1767490441485,3.05638874,133.89,133.84,0.05579964]
[1767490441680,5.77381687,133.88,133.84,0.05579964]
[1767490441980,3.14189889,133.87,133.79,2.96113975]
[1767490442185,3.0941147,133.85,133.79,2.96113975]
[1767490443087,0.04947944,133.83,133.81,0.04828143]
[1767490444587,3.0941147,133.89,133.82,2.96113975]
[1767490444780,5.84580086,133.88,133.83,2.96113975]
[1767490445089,5.84580086,133.87,133.83,4.17749086]
[1767490445279,3.0941147,133.89,133.83,4.17749086]
[1767490445479,5.84675677,133.88,133.83,4.17749086]
[1767490445777,5.84675677,133.87,133.84,0.05075193]
[1767490445978,3.0941147,133.89,133.84,0.05075193]
[1767490446184,5.84686731,133.88,133.84,0.05075193]
[1767490446388,5.84686731,133.87,133.84,0.05075193]
[1767490446591,3.0941147,133.89,133.84,0.05075193]
[1767490446779,5.84692409,133.88,133.84,0.05075193]
[1767490446979,3.0941147,133.89,133.84,0.05075193]
[1767490447179,5.84722724,133.88,133.84,0.05075193]
[1767490447388,3.0941147,133.89,133.84,0.05075193]
[1767490447585,5.84749501,133.88,133.84,0.05075193]
[1767490447889,3.0941147,133.89,133.84,0.05075193]
[1767490448091,5.84743875,133.88,133.84,0.05075193]
[1767490448389,3.0941147,133.89,133.84,0.05075193]
[1767490448589,5.84750916,133.88,133.84,0.05075193]
[1767490448789,3.0941147,133.89,133.84,0.05075193]
[1767490449091,5.84770126,133.88,133.84,0.05075193]
[1767490449292,3.0941147,133.89,133.84,0.05075193]
[1767490449488,5.84776473,133.88,133.84,0.05075193]
[1767490449689,3.0941147,133.89,133.84,0.05075193]
[1767490449891,5.84776473,133.88,133.84,0.05075193]
[1767490450186,3.0941147,133.89,133.84,0.05075193]
[1767490450388,5.84799739,133.88,133.84,0.05075193]
[1767490450587,3.0941147,133.89,133.84,0.05075193]
[1767490450794,5.84799739,133.88,133.84,0.05075193]
[1767490450983,3.0941147,133.89,133.84,0.05075193]
[1767490451182,5.84799739,133.88,133.84,0.05075193]
[1767490451377,3.0941147,133.89,133.84,0.05075193]
[1767490451692,5.84940347,133.88,133.84,0.05075193]
[1767490451893,3.0941147,133.89,133.84,0.05075193]
[1767490452091,5.85040529,133.88,133.84,0.05075193]
[1767490452286,3.0941147,133.89,133.84,1.26710304]
[1767490452487,5.85059654,133.88,133.84,1.26710304]
[1767490452685,3.0941147,133.89,133.84,1.26710304]
[1767490452892,5.85059654,133.88,133.84,1.26710304]
[1767490453094,3.0941147,133.89,133.84,1.26710304]
[1767490453295,5.85099455,133.88,133.84,1.26710304]
[1767490453595,3.0941147,133.89,133.84,1.26710304]
[1767490453792,5.85121094,133.88,133.84,1.26710304]
[1767490453991,3.0941147,133.89,133.84,1.26710304]
[1767490454191,5.85121094,133.88,133.84,1.26710304]
[1767490454393,3.0941147,133.89,133.84,0.05075193]
[1767490454587,5.85126918,133.88,133.84,0.05075193]
[1767490454893,3.0941147,133.89,133.84,0.05075193]
[1767490455094,5.85126918,133.88,133.84,0.05075193]
[1767490455294,3.0941147,133.89,133.84,0.05075193]
[1767490455496,5.85153615,133.88,133.84,0.05075193]
[1767490455696,3.0941147,133.89,133.84,0.05075193]
[1767490455897,5.85153615,133.88,133.84,0.05075193]
[1767490456192,3.0941147,133.89,133.84,0.05075193]
[1767490456391,5.85182409,133.88,133.84,0.05075193]
[1767490456592,3.0941147,133.89,133.84,0.05075193]
[1767490456795,5.85182404,133.88,133.84,0.05075193]
[1767490456997,3.0941147,133.89,133.84,0.05075193]
[1767490457193,5.85182404,133.88,133.84,0.05075193]
[1767490457395,3.0941147,133.89,133.84,0.05075193]
[1767490457595,5.8520624,133.88,133.84,0.05075193]
[1767490457802,3.0941147,133.89,133.84,0.05075193]
[1767490458100,5.85112795,133.88,133.84,0.05075193]
[1767490458401,3.0941147,133.89,133.84,0.05075193]
[1767490458700,5.85094784,133.88,133.84,0.05075193]
[1767490458902,3.0941147,133.89,133.84,0.05075193]
[1767490459105,5.85097982,133.88,133.84,0.05075193]
[1767490459303,3.0941147,133.89,133.84,0.05075193]
[1767490459602,5.85107252,133.88,133.84,0.05075193]
[1767490459804,3.0941147,133.89,133.84,0.05075193]
[1767490460105,5.85105875,133.88,133.84,0.05075193]
[1767490460296,3.0941147,133.89,133.84,0.05075193]
[1767490460496,5.85104293,133.88,133.84,0.05075193]
[1767490460696,3.0941147,133.89,133.84,0.05075193]
[1767490460898,5.85104293,133.88,133.84,0.05075193]
[1767490461098,3.0941147,133.89,133.84,0.05075193]
[1767490461298,5.85111948,133.88,133.84,0.05075193]
[1767490461499,3.0941147,133.89,133.84,0.05075193]
[1767490461700,5.85110818,133.88,133.84,0.05075193]
[1767490462014,3.0941147,133.89,133.84,0.05075193]
[1767490462198,5.85110373,133.88,133.84,0.05075193]
[1767490462394,3.0941147,133.89,133.84,0.05075193]
[1767490462594,5.85108787,133.88,133.84,0.05075193]
[1767490462802,3.0941147,133.89,133.84,0.05075193]
[1767490463100,8.94520257,133.88,133.84,0.05075193]
[1767490463302,3.0941147,133.88,133.84,0.05075193]
[1767490464498,88.28,133.93,133.85,4.17749086]
[1767490464702,5.8514631,133.92,133.88,0.05522548]
[1767490464894,5.8514631,133.91,133.88,0.05522548]
[1767490465091,5.8514631,133.9,133.88,0.05522548]
[1767490465296,6.7226,133.94,133.88,0.05522548]
[1767490465491,5.85107166,133.93,133.88,0.05522548]
[1767490465806,5.85107166,133.92,133.88,0.05522548]
[1767490466100,5.85107166,133.91,133.88,0.05522548]
[1767490466302,101.55113093,133.95,133.88,0.05522548]
[1767490466504,3.0941147,133.93,133.88,0.05522548]
[1767490466702,8.94342391,133.92,133.88,0.05522548]
[1767490466903,5.84930921,133.91,133.88,0.05522548]
[1767490467206,3.0941147,133.92,133.88,0.05522548]